Workbook

Sheet Критерии оценки
B2: Мероприятие | D2: Региональный этап Чемпионата по профессиональному мастерству "Профессионалы" в 2026 г
B3: Наименование компетенции | D3: Геопространственные технологии (юниоры)
A5: Код | B5: Подкритерий | C5: Тип аспекта | D5: Аспект | E5: Судейский балл | F5: Методика проверки аспекта | G5: Требование или номинальный размер | H5: Проф. задача | I5: Макс. балл | L5: 1 | M5: 2 | N5: 3 | O5: 4 | P5: 5 | Q5: 6
A6: А | B6: Инженерно-геодезические работы при строительстве | I6: =SUM(I8:I75) -> 37.00 | K6: 1 | L6: =SUM(I8+I9+I10) -> 2.00 | M6: =I11+I12 -> 2.00
A7: 1 | B7: Организация безопасности и коммуникационные навыки при выполнении работ | K7: 2 | N7: =I14 -> 1.00 | O7: =SUM(I19+I20) -> 1.40 | P7: =I15+I27+I17 -> 3.11 | Q7: =SUM(I16+I18+I21+I22+I23+I24+I25+I26+I28) -> 5.10
C8: И | D8: Приемка бланков конкурсного задания конкурсанта в надлежащем формате | F8: Ставим «Нет» при условии, что поврежденные/испорченные листы КЗ сданы ГЭ (сложенные пополам, промокшие, вне мультифорки, с деформацией листа КЗ) | G8: Да/Нет | H8: 1 | I8: 0.50 | K8: 3 | N8: =I34+I39 -> 2.00 | O8: =SUM(I30+I33+I35+I36+I38+I40+I41+I45) -> 4.80 | P8: =I37+I42+I50 -> 5.86 | Q8: =SUM(I31+I32+I43+I44) -> 1.50
C9: И | D9: Чистота рабочего места во время и после выполнения конкурсного задания (полевые и камеральные работы) | F9: Например: не оставлять бутылки, салфетки, фантики, жевательные резинки и т.п. | G9: Да/Нет | H9: 1 | I9: 0.50 | K9: 4 | N9: =I57 -> 1.00 | O9: =SUM(I56+I58+I59+I60+I63) -> 3.20 | P9: =I61 -> 1.03 | Q9: =I62 -> 0.30
C10: И | D10: Саблюдение всех требований охраны труда и техники безопасности | F10: См. инструкцию по охране труда (Приложение 3) | G10: Да/Нет | H10: 1 | I10: 1.00 | K10: 5 | O10: =I73 -> 0.60 | Q10: =SUM(I69+I70+I71+I72+I74+I75) -> 2.10
C11: И | D11: Осмысление поступающей информации в критической ситуации профессиональной направленности | F11: Ставим «Нет» при отсутствии профессиональной компетентности конкурсанта в сложивщейся ситуации | G11: Да/Нет | H11: 2 | I11: 1.00 | L11: =SUM(L6:L10) -> 2 | M11: =SUM(M6:M10) -> 2 | N11: =SUM(N6:N10) -> 4 | O11: =SUM(O6:O10) -> 10 | P11: 10 | Q11: =SUM(Q6:Q10) -> 9
C12: И | D12: Профессиональная формулировка сложившейся проблемы при выполнении топографо-геодезических работ до экспертов | G12: Да/Нет | H12: 2 | I12: 1.00 | K12: эталон | L12: 2 | M12: 2 | N12: 4 | O12: 10 | P12: 10 | Q12: 9
A13: 2 | B13: Выполнение топографической съемки участка местности с помощью механического тахеометра
C14: И | D14: Зарисовка абриса выполнена согласно КЗ | G14: Да/Нет | H14: 3 | I14: 1.00
C15: И | D15: Прибор приведен в рабочее положение | G15: Да/Нет | H15: 5 | I15: 1.25
C16: И | D16: Импорт данных с USB-накопителя выполнен корректно | G16: Да/Нет | H16: 6 | I16: 0.56
C17: И | D17: Координаты станции определены методом согласо КЗ | G17: Да/Нет | H17: 5 | I17: 1.33
C18: И | D18: Скриншот качества ориентирования выполнен и сохранен согласно КЗ | G18: Да/Нет | H18: 6 | I18: 0.56
C19: И | D19: Качество определения коррдинат станции соответствует заявленым требованиям КЗ | G19: Да/Нет | H19: 4 | I19: 0.80
C20: И | D20: Топографическая съемка участка выполнена в объеме согласно КЗ | G20: Да/Нет | H20: 4 | I20: 0.60
C21: И | D21: Точечным объектам присвоен идентификатор пикетажа согласно КЗ | G21: Да/Нет | H21: 6 | I21: 0.57
C22: И | D22: Линейным объектам присвоен идентификатор пикетажа согласно КЗ | G22: Да/Нет | H22: 6 | I22: 0.57
C23: И | D23: Площадным объектам присвоен идентификатор пикетажа согласно КЗ | G23: Да/Нет | H23: 6 | I23: 0.57
C24: И | D24: Полевое кодирование использовалось | G24: Да/Нет | H24: 6 | I24: 0.57
C25: И | D25: Каждой съемочной точке присвоен код | G25: Да/Нет | H25: 6 | I25: 0.57
C26: И | D26: Каждой съемочной точке присвоен код согласно ситуации | G26: Да/Нет | H26: 6 | I26: 0.57
C27: И | D27: Экспорт проекта выполнен согласно КЗ | G27: Да/Нет | H27: 5 | I27: 0.53
C28: И | D28: Конкурсное задание и USB-накопитель сданы Главному эксперту | G28: Да/Нет | H28: 6 | I28: 0.56
A29: 3 | B29: Полевые геодезические работы при инспектировании фасада зданий
C30: И | D30: Рекогнасцировка объекта выполнена согласно КЗ | G30: Да/Нет | H30: 4 | I30: 0.60
C31: И | D31: Рабочий проект в полевом ПО электронного тахеометра создан согласно требованиям КЗ | G31: Да/Нет | H31: 6 | I31: 0.40
C32: И | D32: Импорт каталога опорных пунктов с USB-накопителя в новый рабочий проект выполнен корректно | G32: Да/Нет | H32: 6 | I32: 0.40
C33: И | D33: Ориентирование инструмента на 1-й станции выполнено согласно требованиям КЗ | G33: Да/Нет | H33: 4 | I33: 0.60
C34: И | D34: Скриншот дисплея полевого ПО с качеством установки тахеометра на 1-й станции сохранён | G34: Да/Нет | H34: 3 | I34: 1.00
C35: И | D35: Точность ориентирования тахеометра на 1-й станции составляет не более 5 мм плане | G35: Да/Нет | H35: 4 | I35: 0.60
C36: И | D36: Точность ориентирования тахеометра на 1-й станции составляет не более 5 мм по высоте | G36: Да/Нет | H36: 4 | I36: 0.60
C37: И | D37: Съёмка фасада здания с 1-й станции выполнена | G37: Да/Нет | H37: 5 | I37: 1.93
C38: И | D38: Ориентирование инструмента на 2-й станции выполнено согласно требованиям КЗ | G38: Да/Нет | H38: 4 | I38: 0.60
C39: И | D39: Скриншот дисплея полевого ПО с качеством установки тахеометра на 2-й станции сохранён | G39: Да/Нет | H39: 3 | I39: 1.00
C40: И | D40: Точность ориентирования тахеометра на 2-й станции составляет не более 5 мм плане | G40: Да/Нет | H40: 4 | I40: 0.60
C41: И | D41: Точность ориентирования тахеометра на 2-й станции составляет не более 5 мм по высоте | G41: Да/Нет | H41: 4 | I41: 0.60
C42: И | D42: Съёмка фасада здания со 2-й станции выполнена | G42: Да/Нет | H42: 5 | I42: 1.93
C43: И | D43: Экспорт рабочего проекта на USB-накопитель в формате *.HeXML выполнен корректно | G43: Да/Нет | H43: 6 | I43: 0.40
C44: И | D44: Конкурсное задание и USB-накопитель сданы Главному эксперту | G44: Да/Нет | H44: 6 | I44: 0.30
C45: С | D45: Выполнение полевых работ | H45: 4 | I45: 0.60
E46: 0 | F46: Исполнение не соответствует отраслевому стандарту
E47: 1 | F47: Исполнение соответствует отраслевому стандарту
E48: 2 | F48: Исполнение соответствует отраслевому стандарту и в некоторых отношениях превосходит его
E49: 3 | F49: Исполнение полностью превосходит отраслевой стандарт и оценивается как отличное
C50: С | D50: Навыки работы с обородуванием и аксессуарами | H50: 5 | I50: 2.00
E51: 0 | F51: Исполнение не соответствует отраслевому стандарту
E52: 1 | F52: Исполнение соответствует отраслевому стандарту
E53: 2 | F53: Исполнение соответствует отраслевому стандарту и в некоторых отношениях превосходит его
E54: 3 | F54: Исполнение полностью превосходит отраслевой стандарт и оценивается как отличное
A55: 4 | B55: Решение прикладных геодезических задач
C56: И | D56: Площадь заданного земельного участка вычислена согласно КЗ | G56: Да/Нет | H56: 4 | I56: 0.64
C57: И | D57: Результаты определения площади заданного земельного участка сохранена согласно КЗ | G57: Да/Нет | H57: 3 | I57: 1.00
C58: И | D58: Качество определения площади участка не отличается от эталонного значения более чем на 15% | G58: Да/Нет | H58: 4 | I58: 0.64
C59: И | D59: Высота провиса провода между столбами на полигоне определена согласно КЗ | G59: Да/Нет | H59: 4 | I59: 0.64
C60: И | D60: Результат определения высоты недоступной точки сохранен согласно КЗ | G60: Да/Нет | H60: 4 | I60: 0.64
C61: И | D61: Электронный тахеометр и аксесуары сданы ТАПу | G61: Да/Нет | H61: 5 | I61: 1.03
C62: И | D62: Конкурсное задание и USB- накопитель сданы Главному эксперту | G62: Да/Нет | H62: 6 | I62: 0.30
C63: С | D63: Навыки выполнения прикладных геодезических задач | H63: 4 | I63: 0.64
E64: 0 | F64: Исполнение не соответствует отраслевому стандарту
E65: 1 | F65: Исполнение соответствует отраслевому стандарту
E66: 2 | F66: Исполнение соответствует отраслевому стандарту и в некоторых отношениях превосходит его
E67: 3 | F67: Исполнение полностью превосходит отраслевой стандарт и оценивается как отличное
A68: 5 | B68: Съемка склада сыпучего материала
C69: И | D69: Рабочий проект создак согласно КЗ | G69: Да/Нет | H69: 6 | I69: 0.30
C70: И | D70: Импорт данных успешно выполнен | G70: Да/Нет | H70: 6 | I70: 0.30
C71: И | D71: Ориентирование инструмента выполнено согласно КЗ | G71: Да/Нет | H71: 6 | I71: 0.40
C72: И | D72: Скриншот качества ориентирования выполнен и сохранен согласно КЗ | G72: Да/Нет | H72: 6 | I72: 0.30
C73: И | D73: Съемка склада сыпучего материала выполнена согласна КЗ | G73: Да/Нет | H73: 4 | I73: 0.60
C74: И | D74: Идентификатор пикетажа ппри съемке склада сыпучего материала изменен согласно КЗ | G74: Да/Нет | H74: 6 | I74: 0.40
C75: И | D75: Зкспорт проекта с измерениями и твердыми точками выполнен согласно КЗ | G75: Да/Нет | H75: 6 | I75: 0.40
A76: Б | B76: Работа в специализированном программном обеспечении | I76: =SUM(I78:I148) -> 32.00 | L76: 1 | M76: 2 | N76: 3 | O76: 4 | P76: 5 | Q76: 6
A77: 1 | B77: Организация безопасности и коммуникационные навыки при выполнении работ | K77: 1 | L77: =SUM(I78+I79+I80) -> 1.00 | M77: =I81+I82 -> 1.00
C78: И | D78: Приемка бланков конкурсного задания конкурсанта в надлежащем формате | F78: Ставим «Нет» при условии, что поврежденные/испорченные листы КЗ сданы ГЭ (сложенные пополам, промокшие, вне мультифорки, с деформацией листа КЗ) | G78: Да/Нет | H78: 1 | I78: 0.34 | K78: 2 | N78: =I89+I90+I91+I97+I98+I103+I104+I105 -> 2.88 | O78: =SUM(I86+I87+I88+I94+I95) -> 4.30 | P78: 0.60 | Q78: =SUM(I84+I92+I93+I96+I99+I100+I101+I102+I106+I107+I108+I109) -> 4.20
C79: И | D79: Чистота рабочего места во время и после выполнения конкурсного задания (полевые и камеральные работы) | F79: Например: не оставлять бутылки, салфетки, фантики, жевательные резинки и т.п. | G79: Да/Нет | H79: 1 | I79: 0.33 | K79: 3 | N79: =I120+I123+I122 -> 1.12 | O79: =SUM(I121+I127+I129+I130+I131+I132+I134) -> 5.70 | P79: 1.40 | Q79: 4.80
C80: И | D80: Саблюдение всех требований охраны труда и техники безопасности | F80: См. инструкцию по охране труда (Приложение 3) | G80: Да/Нет | H80: 1 | I80: 0.33 | K80: 4 | Q80: 5.00
C81: И | D81: Осмысление поступающей информации в критической ситуации профессиональной направленности | F81: Ставим «Нет» при отсутствии профессиональной компетентности конкурсанта в сложивщейся ситуации | G81: Да/Нет | H81: 2 | I81: 0.50 | L81: =SUM(L77:L80) -> 1 | M81: =SUM(M77:M80) -> 1 | N81: 4 | O81: 10 | P81: 2 | Q81: 14
C82: И | D82: Профессиональная формулировка сложившейся проблемы при выполнении топографо-геодезических работ до экспертов | G82: Да/Нет | H82: 2 | I82: 0.50 | K82: эталон | L82: 1 | M82: 1 | N82: 4 | O82: 10 | P82: 2 | Q82: 14
A83: 2 | B83: Камеральные геодезические работы
C84: И | D84: На рабочем столе создана папка согдасно КЗ | G84: Да/Нет | H84: 6 | I84: 0.34
C85: И | D85: Проект импортирован согласно КЗ | G85: Да/Нет | H85: 5 | I85: 0.60
C86: И | D86: Масштаб съемки в проекте соответствует КЗ | G86: Да/Нет | H86: 4 | I86: 0.80
C87: И | D87: Точность плановых измерений соответствует КЗ | G87: Да/Нет | H87: 4 | I87: 0.80
C88: И | D88: Уравнивание измерений выполнено | G88: Да/Нет | H88: 4 | I88: 0.80
C89: И | D89: Каталог координат и высот пунктов планово-высотного обоснования сформирован и сохранен согласно КЗ | G89: Да/Нет | H89: 3 | I89: 0.36
C90: И | D90: Ведомость предобработки сформирована и сохранена согласно КЗ | G90: Да/Нет | H90: 3 | I90: 0.36
C91: И | D91: Ведомость координат сформирована и сохранена согласно КЗ | G91: Да/Нет | H91: 3 | I91: 0.36
C92: И | D92: Экспорт проекта в План генеральный выполнен согласно КЗ | G92: Да/Нет | H92: 6 | I92: 0.34
C93: И | D93: Набору проектов присвоено имя согласно КЗ | G93: Да/Нет | H93: 6 | I93: 0.34
C94: И | D94: Отрисовка ситуации выполнена согласно КЗ | G94: Да/Нет | H94: 4 | I94: 0.95
C95: И | D95: Построение поверхности выполнено | G95: Да/Нет | H95: 4 | I95: 0.95
C96: И | D96: Планшет сформирован согласно КЗ | G96: Да/Нет | H96: 6 | I96: 0.34
C97: И | D97: Все переменные поля планшета заполнены | G97: Да/Нет | H97: 3 | I97: 0.36
C98: И | D98: Чертеж сохранен согласно КЗ | G98: Да/Нет | H98: 3 | I98: 0.36
C99: И | D99: Поворотные точки границ земельного участка пронумерованы и соединены согласно КЗ | G99: Да/Нет | H99: 6 | I99: 0.34
C100: И | D100: Сетка квадратов запроектирована согласно КЗ | G100: Да/Нет | H100: 6 | I100: 0.34
C101: И | D101: Вид осей выбран согласно КЗ | G101: Да/Нет | H101: 6 | I101: 0.34
C102: И | D102: Цвет линий сетки выбран согласно КЗ | G102: Да/Нет | H102: 6 | I102: 0.34
C103: И | D103: Тип шрифта подписей выбран согласно КЗ | G103: Да/Нет | H103: 3 | I103: 0.36
C104: И | D104: Высота шрифта задана согласно КЗ | G104: Да/Нет | H104: 3 | I104: 0.36
C105: И | D105: Ведомость узлов строительной сетки создана и сохранена согласно КЗ | G105: Да/Нет | H105: 3 | I105: 0.36
C106: И | D106: Текстовый файл создан согласно КЗ | G106: Да/Нет | H106: 6 | I106: 0.36
C107: И | D107: Текстовый файл скопирован согласно КЗ | G107: Да/Нет | H107: 6 | I107: 0.36
C108: И | D108: Текстовый файл сохранен согласно КЗ | G108: Да/Нет | H108: 6 | I108: 0.36
C109: С | D109: Навыки работы в ПО КРЕДО | H109: 6 | I109: 0.40
E110: 0 | F110: Исполнение не соответствует отраслевому стандарту
E111: 1 | F111: Исполнение соответствует отраслевому стандарту
E112: 2 | F112: Исполнение соответствует отраслевому стандарту и в некоторых отношениях превосходит его
E113: 3 | F113: Исполнение полностью превосходит отраслевой стандарт и оценивается как отличное
A114: 3 | B114: Инспектирование поверхности в системе Leica Captivate
C115: И | D115: Рабочий проект в симуляторе полевого ПО создан согласно требованиям КЗ | G115: Да/Нет | H115: 6 | I115: 0.60
C116: И | D116: Импорт файла в формате *.TXT в рабочий проект выполнен корректно | G116: Да/Нет | H116: 6 | I116: 0.60
C117: И | D117: Проектная модель фасада здания в формате *.DXF загружена | G117: Да/Нет | H117: 6 | I117: 0.60
C118: И | D118: Проектная поверхность для инспектирования фасада здания задана согласно требованиям КЗ | G118: Да/Нет | H118: 6 | I118: 0.60
C119: И | D119: Фактическая поверхность для инспектирования фасада здания выбрана согласно требованиям КЗ | G119: Да/Нет | H119: 6 | I119: 0.60
C120: И | D120: Карта цветовых отклонений создана согласно сложности геометрии фасада инспектируемого здания | G120: Да/Нет | H120: 3 | I120: 0.40
C121: И | D121: Инспектирование фасада здания выполнено | G121: Да/Нет | H121: 4 | I121: 0.80
C122: И | D122: Скриншот статистического отчёта с результатами анализа сравнения сохранён | G122: Да/Нет | H122: 3 | I122: 0.36
C123: И | D123: Подробный отчёт с результатами сравнения каждой точки сохранён | G123: Да/Нет | H123: 3 | I123: 0.36
C124: И | D124: Установка и тахеометра выполнена согласно КЗ | G124: Да/Нет | H124: 5 | I124: 0.70
C125: И | D125: Прибор приведен в рабочее положение | G125: Да/Нет | H125: 5 | I125: 0.70
C126: И | D126: Импорт данных с USB-накопителя выполнен корректно | G126: Да/Нет | H126: 6 | I126: 0.60
C127: И | D127: Установка станции выполена согласно КЗ | G127: Да/Нет | H127: 4 | I127: 0.78
C128: И | D128: Скриншот качества ориентирования сохранет | G128: Да/Нет | H128: 6 | I128: 0.60
C129: И | D129: Поворотные точки земельного участка вынесены и закреплены согласно КЗ | G129: Да/Нет | H129: 4 | I129: 0.78
C130: И | D130: Площадь земельного участка вычислена согласно КЗ | G130: Да/Нет | H130: 4 | I130: 0.88
C131: И | D131: Вынос и закрепление строительной сетки на местности выполнен согласно КЗ | G131: Да/Нет | H131: 4 | I131: 0.88
C132: И | D132: Каждая вершина строительной сетки подписана согласно КЗ | G132: Да/Нет | H132: 4 | I132: 0.78
C133: И | D133: Экспорт проекта выполнен согласно КЗ | G133: Да/Нет | H133: 6 | I133: 0.60
C134: С | D134: Навыки работы в системе Leica Captivate | H134: 4 | I134: 0.80
E135: 0 | F135: Исполнение не соответствует отраслевому стандарту
E136: 1 | F136: Исполнение соответствует отраслевому стандарту
E137: 2 | F137: Исполнение соответствует отраслевому стандарту и в некоторых отношениях превосходит его
E138: 3 | F138: Исполнение полностью превосходит отраслевой стандарт и оценивается как отличное
A139: 4 | B139: Вычисление объема склада сыпучего материала в программном комплексе NanoCAD
C140: И | D140: Текстовый файл скопирован согласно КЗ | G140: Да/Нет | H140: 6 | I140: 0.50
C141: И | D141: Точки верхнего слоя склада сыпучего материала созданы согласно КЗ | G141: Да/Нет | H141: 6 | I141: 0.60
C142: И | D142: Точки нижнего слоя склада сыпучего материала созданы согласно КЗ | G142: Да/Нет | H142: 6 | I142: 0.60
C143: И | D143: Границы нижнего слоя склада сыпучего материала созданы согласно КЗ | G143: Да/Нет | H143: 6 | I143: 0.60
C144: И | D144: Построение поверхности для точек верхнего слоя склада сыпучего материала выполнено согласно КЗ | G144: Да/Нет | H144: 6 | I144: 0.60
C145: И | D145: Редактирование ребер триангуляции поверхности для точек верхнего слоя склада сыпучего материала выполнено согласно КЗ | G145: Да/Нет | H145: 6 | I145: 0.50
C146: И | D146: Построение поверхности для точек нижнего слоя склада сыпучего материала выполнено согласно КЗ | G146: Да/Нет | H146: 6 | I146: 0.60
C147: И | D147: Ребра триангуляции поверхности для точек нижнего слоя склада сыпучего материала отредактированы согласно КЗ | G147: Да/Нет | H147: 6 | I147: 0.50
C148: И | D148: Чертех оформлен и сохранен согласно КЗ | G148: Да/Нет | H148: 6 | I148: 0.50
A149: В | B149: Обмер помещений и конструктор для будущего дизайн-проекта | I149: =SUM(I150:I206) -> 31.00 | L149: 1 | M149: 2 | N149: 3 | O149: 4 | P149: 5 | Q149: 6
A150: 1 | B150: Организация безопасности и коммуникационные навыки при выполнении работ | K150: 1 | L150: =I151+I152+I153 -> 2.00 | M150: =I154+I155 -> 2.00
C151: И | D151: Приемка бланков конкурсного задания конкурсанта в надлежащем формате | F151: Ставим «Нет» при условии, что поврежденные/испорченные листы КЗ сданы ГЭ (сложенные пополам, промокшие, вне мультифорки, с деформацией листа КЗ) | G151: Да/Нет | H151: 1 | I151: 0.50 | K151: 2 | N151: =SUM(I157+I158+I159+I160+I170+I171) -> 1.40 | O151: =SUM(I161+I162+I163+I164+I165+I166+I167+I168+I169) -> 6.40
C152: И | D152: Чистота рабочего места во время и после выполнения конкурсного задания (полевые и камеральные работы) | F152: Например: не оставлять бутылки, салфетки, фантики, жевательные резинки и т.п. | G152: Да/Нет | H152: 1 | I152: 0.50 | K152: 3 | O152: =SUM(I173+I174+I175+I176) -> 1.60 | P152: =I178 -> 1.00 | Q152: 0.5
C153: И | D153: Саблюдение всех требований охраны труда и техники безопасности | F153: См. инструкцию по охране труда (Приложение 3) | G153: Да/Нет | H153: 1 | I153: 1.00 | K153: 4 | N153: =I197+I198 -> 0.60 | O153: =I206 -> 1.00 | P153: =I200 -> 1.00 | Q153: =SUM(I180+I181+I182+I183+I184+I185+I186+I187+I188+I189+I190+I191+I192+I193+I194+I195+I196+I199+I201) -> 13.50
C154: И | D154: Осмысление поступающей информации в критической ситуации профессиональной направленности | F154: Ставим «Нет» при отсутствии профессиональной компетентности конкурсанта в сложивщейся ситуации | G154: Да/Нет | H154: 2 | I154: 1.00 | L154: =SUM(L150:L153) -> 2 | M154: =SUM(M150:M153) -> 2 | N154: 2 | O154: 9 | P154: 2 | Q154: =SUM(Q151:Q153) -> 14
C155: И | D155: Профессиональная формулировка сложившейся проблемы при выполнении топографо-геодезических работ до экспертов | G155: Да/Нет | H155: 2 | I155: 1.00 | K155: эталон | L155: 2 | M155: 2 | N155: 2 | O155: 9 | P155: 2 | Q155: 14
A156: 2 | B156: Обмер помещений и конструктор для будущего дизайн-проекта в ручном режиме
C157: И | D157: Составлен подробный абрис обмеряемой территории в планшете | G157: Да/Нет | H157: 3 | I157: 0.23
C158: И | D158: На абрисе отмечены все конструкции, имеющиеся на обмеряемой территории | G158: Да/Нет | H158: 3 | I158: 0.23
C159: И | D159: Каждое помещение пронумеровано | G159: Да/Нет | H159: 3 | I159: 0.23
C160: И | D160: На абрисе подписаны элементы помещений, согласно КЗ | G160: Да/Нет | H160: 3 | I160: 0.23
C161: И | D161: Измерена длина каждой стены помещения, согласно КЗ | G161: Да/Нет | H161: 4 | I161: 0.70
C162: И | D162: Длины каждой из стен помещения измерены на уровне 1,5 м | G162: Да/Нет | H162: 4 | I162: 0.70
C163: И | D163: Измерены высоты всех стен, согласно КЗ | G163: Да/Нет | H163: 4 | I163: 0.70
C164: И | D164: Измерены значения углов всех смежных стен, согласно КЗ | G164: Да/Нет | H164: 4 | I164: 0.70
C165: И | D165: Результаты измерений, записаны в таблице, согласно КЗ | G165: Да/Нет | H165: 4 | I165: 0.70
C166: И | D166: Углы помещений на абрисе пронумерованы | G166: Да/Нет | H166: 4 | I166: 0.70
C167: И | D167: Линейные размеры нанесены на абрис | G167: Да/Нет | H167: 4 | I167: 0.70
C168: И | D168: Вычислены площади всех дверных проемов, согласно КЗ | G168: Да/Нет | H168: 4 | I168: 0.75
C169: И | D169: Вычислены площади всех оконных проемов, согласно КЗ | G169: Да/Нет | H169: 4 | I169: 0.75
C170: И | D170: Результаты измерений и площади зафиксированы в таблице, согласно КЗ | G170: Да/Нет | H170: 3 | I170: 0.24
C171: И | D171: Чертеж оформлен в ПО согласно КЗ | G171: Да/Нет | H171: 3 | I171: 0.24
A172: 3 | B172: Обмер помещений и конструктор для будущего дизайн-проекта в автоматизированном режиме
C173: И | D173: Обмер помещений выполнен, использую функцию сбора данных | G173: Да/Нет | H173: 4 | I173: 0.40
C174: И | D174: Обмер помещений выполнен с одной станции | G174: Да/Нет | H174: 4 | I174: 0.40
C175: И | D175: Проект с измерениями импортирован согласно КЗ | G175: Да/Нет | H175: 4 | I175: 0.40
C176: И | D176: Абрис помещений составлен, согласно КЗ | G176: Да/Нет | H176: 4 | I176: 0.40
C177: И | D177: Проект с готовым абрисом сохранен, согласно КЗ | G177: Да/Нет | H177: 6 | I177: 0.50
C178: И | D178: Готовый абрис, лазерный дальномер, планшет и стилус сданы Главному эксперт в исправном состоянии | G178: Да/Нет | H178: 5 | I178: 1.00
A179: 4 | B179: Обработка данных для дизайн-проекта в 3D
C180: И | D180: Создан и сохранен новый чертеж, согласно КЗ | G180: Да/Нет | H180: 6 | I180: 0.50
C181: И | D181: Масштаб чертежа установлен, согласно КЗ | G181: Да/Нет | H181: 6 | I181: 0.50
C182: И | D182: Детальный план обмеряемой территории вычерчен, согласно КЗ | G182: Да/Нет | H182: 6 | I182: 1.50
C183: И | D183: На чертеже показано все, согласно КЗ | G183: Да/Нет | H183: 6 | I183: 1.00
C184: И | D184: На чертеже указаны все линейные размеры | G184: Да/Нет | H184: 6 | I184: 1.00
C185: И | D185: В офисном программном обеспечении создан слой "Стены", согласно КЗ | G185: Да/Нет | H185: 6 | I185: 0.50
C186: И | D186: В слое "Стены" вычерчены все соответствующие объекты | G186: Да/Нет | H186: 6 | I186: 1.00
C187: И | D187: В офисном программном обеспечении создан слой "Оконные проемы", согласно КЗ | G187: Да/Нет | H187: 6 | I187: 0.50
C188: И | D188: В слое "Оконные проемы" вычерчены все соответствующие объекты | G188: Да/Нет | H188: 6 | I188: 0.50
C189: И | D189: В офисном программном обеспечении создан слой "Дверные проемы", согласно КЗ | G189: Да/Нет | H189: 6 | I189: 0.50
C190: И | D190: В слое "Дверные проемы" вычерчены все соответствующие объекты | G190: Да/Нет | H190: 6 | I190: 0.50
C191: И | D191: В офисном программном обеспечении создан слой "Размеры", согласно КЗ | G191: Да/Нет | H191: 6 | I191: 0.50
C192: И | D192: В слое "Размеры" вычерчены все соответствующие объекты | G192: Да/Нет | H192: 6 | I192: 1.00
C193: И | D193: Вычислена площадь каждого помещения | G193: Да/Нет | H193: 6 | I193: 1.50
C194: И | D194: Площадь каждого помещения нанесена на чертеж | G194: Да/Нет | H194: 6 | I194: 0.50
C195: И | D195: Каждое помещение пронумеровано, согласно КЗ | G195: Да/Нет | H195: 6 | I195: 0.50
C196: И | D196: Проект с измерениями открыт в ПО, согласно КЗ | G196: Да/Нет | H196: 6 | I196: 0.50
C197: И | D197: Чертеж сохранен, согласно КЗ | G197: Да/Нет | H197: 3 | I197: 0.30
C198: И | D198: Все отклонения между объектами на двух чертежах занесены в таблицу, согласно КЗ | G198: Да/Нет | H198: 3 | I198: 0.30
C199: И | D199: Проект сохранен | G199: Да/Нет | H199: 6 | I199: 0.50
C200: И | D200: Все инструменты и оборудование сданы ГЭ, офисное ПО закрыто | G200: Да/Нет | H200: 5 | I200: 1.00
C201: С | D201: Навыки работы ПО Leica Captivate | H201: 6 | I201: 0.50
E202: 0 | F202: Исполнение не соответствует отраслевому стандарту
... 9 more rows

Sheet Перечень профессиональных задач
A1: Перечень профессиональных задач
A2: 1 | B2: Охрана труда
A3: 2 | B3: Менеджмент и бережливое производство
A4: 3 | B4: Нормативно-правовая документация в геодезическом и топографическом производстве
A5: 4 | B5: Технология выполнения геодезических работ в сферах профессиональной деятельности
A6: 5 | B6: Оборудование и инструменты
A7: 6 | B7: Офисное, полевое и специализированное ПО
